[Event "2nd Serbian League-Vojvodina 2023"]
[Site "Novi Sad"]
[Date "2023.11.04"]
[Round "4.6"]
[White "Krejic, Igor"]
[Black "Vranic, Ljubomir"]
[Result "1/2-1/2"]
[ECO "B13"]
[WhiteElo "2128"]
[BlackElo "2090"]
[Annotator "ChessBase"]
[PlyCount "126"]
[EventDate "2023.10.22"]
[EventType "team-tourn"]
[EventCountry "SRB"]
[SourceTitle "playchess.com"]
[Source "ChessBase"]
[SourceQuality "1"]
[TimeControl "40/5400+30:1800+30"]

1. e4 {[%emt 0:00:04]} c6 {[%emt 0:02:38]} 2. d4 {[%emt 0:01:08]} d5 {[%emt 0:00:13]} 3. exd5 {[%emt 0:03:08]} cxd5 {[%emt 0:00:15]} 4. c4 {[%emt 0:00:22]} Nf6 {[%emt 0:01:57]} 5. Nc3 {[%emt 0:00:42]} Nc6 {[%emt 0:01:08]} 6. Nf3 {[%emt 0:03:00]} Bg4 {[%emt 0:10:36]} 7. cxd5 {[%emt 0:04:37]} Nxd5 {[%emt 0:02:28]} 8. Be2 {[%emt 0:02:47]} e6 {[%emt 0:01:50]} 9. O-O {[%emt 0:04:15]} Be7 {[%emt 0:05:48]} 10. Bb5 {[%emt 0:22:07]} Rc8 {[%emt 0:11:04]} 11. h3 {[%emt 0:07:16]} Bh5 {[%emt 0:09:57]} 12. Qd3 {[%emt 0:06:11]} Ndb4 {[%emt 0:14:20]} 13. Qe2 {[%emt 0:03:41]} O-O {[%emt 0:02:29]} 14. Be3 {[%emt 0:04:12]} a6 {[%emt 0:07:55]} 15. Bxc6 {[%emt 0:04:09]} Nxc6 {[%emt 0:00:50]} 16. Rfd1 {[%emt 0:04:08]} Nb4 {[%emt 0:02:58]} 17. g4 {[%emt 0:02:23]} Bg6 {[%emt 0:00:15]} 18. Ne5 {[%emt 0:00:05]} Nd5 {[%emt 0:02:04]} 19. Rac1 {[%emt 0:05:39]} Qa5 {[%emt 0:16:12]} 20. Qf3 {[%emt 0:07:59]} Nxc3 {[%emt 0:02:05]} 21. Rxc3 {[%emt 0:00:47]} Rxc3 {[%emt 0:00:37]} 22. bxc3 {[%emt 0:00:06]} Qd5 {[%emt 0:01:23]} 23. c4 {[%emt 0:06:01]} Qxf3 {[%emt 0:00:24]} 24. Nxf3 {[%emt 0:00:06]} Rc8 {[%emt 0:00:26]} 25. Ne5 {[%emt 0:01:19]} Bc2 {[%emt 0:01:21]} 26. Rc1 {[%emt 0:02:15]} Ba4 {[%emt 0:00:23]} 27. c5 {[%emt 0:00:17]} f6 {[%emt 0:00:43]} 28. Nc4 {[%emt 0:00:08]} Bc6 {[%emt 0:00:28]} 29. Na5 {[%emt 0:01:10]} Bd5 {[%emt 0:00:09]} 30. a3 {[%emt 0:02:22]} Kf7 {[%emt 0:01:44]} 31. Nc4 {[%emt 0:00:05]} Bxc4 {[%emt 0:00:37]} 32. Rxc4 {[%emt 0:00:05]} Ke8 {[%emt 0:00:39]} 33. Rb4 {[%emt 0:00:25]} Rc7 {[%emt 0:00:26]} 34. f4 {[%emt 0:00:43]} g6 {[%emt 0:00:19]} 35. Kf2 {[%emt 0:00:12]} f5 {[%emt 0:00:15]} 36. Ke2 {[%emt 0:01:13]} Bd8 {[%emt 0:00:56]} 37. Kd3 {[%emt 0:00:08]} Rd7 {[%emt 0:00:33]} 38. Kc4 {[%emt 0:00:05]} fxg4 {[%emt 0:00:30]} 39. hxg4 {[%emt 0:00:06]} h5 {[%emt 0:00:12]} 40. Rb2 {[%emt 0:02:04]} Rh7 {[%emt 0:00:35]} 41. Rh2 {[%emt 0:30:12]} Kd7 {[%emt 0:30:40]} 42. Kd3 {[%emt 0:00:50]} Kc6 {[%emt 0:00:31]} 43. Ke4 {[%emt 0:00:07]} Bc7 {[%emt 0:00:33]} 44. Bc1 {[%emt 0:01:13]} Kb5 {[%emt 0:00:30]} 45. Rg2 {[%emt 0:00:26]} h4 {[%emt 0:00:31]} 46. Rh2 {[%emt 0:00:16]} h3 {[%emt 0:00:30]} 47. g5 {[%emt 0:00:42]} Kc6 {[%emt 0:00:30]} 48. Be3 {[%emt 0:00:15]} Rh5 {[%emt 0:00:24]} 49. Bg1 {[%emt 0:00:28]} Rh4 {[%emt 0:00:34]} 50. Be3 {[%emt 0:00:09]} Rh8 {[%emt 0:00:29]} 51. Bf2 {[%emt 0:00:15]} Rh7 {[%emt 0:00:20]} 52. Bg3 {[%emt 0:00:08]} Bb8 {[%emt 0:00:38]} 53. Rb2 {[%emt 0:00:20]} Bc7 {[%emt 0:00:20]} 54. Bh2 {[%emt 0:00:42]} Rh4 {[%emt 0:00:30]} 55. Kf3 {[%emt 0:00:39]} Rh7 {[%emt 0:00:30]} 56. Ke4 {[%emt 0:00:50]} Rh4 {[%emt 0:00:39]} 57. Kf3 {[%emt 0:00:07]} b5 {[%emt 0:00:36]} 58. cxb6 {[%emt 0:00:29]} Bxb6 {[%emt 0:00:05]} 59. Bg3 {[%emt 0:00:48]} Rh8 {[%emt 0:00:19]} 60. Ke4 {[%emt 0:00:07]} Rd8 {[%emt 0:00:53]} 61. Rc2+ {[%emt 0:01:08]} Kb5 {[%emt 0:00:43]} 62. Rb2+ {[%emt 0:00:12]} Kc6 {[%emt 0:00:25]} 63. Rc2+ {[%emt 0:00:06]} Kb5 {[%emt 0:00:29]} 1/2-1/2

[Event "2nd Serbian League-Vojvodina 2023"]
[Site "Novi Sad"]
[Date "2023.11.04"]
[Round "4.7"]
[White "Agdelen, Huseyin Can"]
[Black "Mezentsev, Ivan"]
[Result "1/2-1/2"]
[ECO "B75"]
[WhiteElo "2401"]
[BlackElo "2360"]
[Annotator "ChessBase"]
[PlyCount "31"]
[EventDate "2023.10.22"]
[EventType "team-tourn"]
[EventCountry "SRB"]
[SourceTitle "playchess.com"]
[Source "ChessBase"]
[SourceQuality "1"]
[TimeControl "40/5400+30:1800+30"]

1. e4 {[%emt 0:06:08]} c5 {[%emt 0:00:09]} 2. Nf3 {[%emt 0:00:09]} d6 {[%emt 0:00:05]} 3. d4 {[%emt 0:00:13]} cxd4 {[%emt 0:00:05]} 4. Nxd4 {[%emt 0:00:08]} Nf6 {[%emt 0:00:14]} 5. Nc3 {[%emt 0:00:12]} g6 {[%emt 0:00:27]} 6. Be3 {[%emt 0:03:03]} Bg7 {[%emt 0:01:35]} 7. f3 {[%emt 0:02:27]} a6 {[%emt 0:02:57]} 8. Qd2 {[%emt 0:00:37]} h5 {[%emt 0:00:36]} 9. Be2 {[%emt 0:01:47]} Nbd7 {[%emt 0:00:52]} 10. O-O {[%emt 0:01:19]} O-O {[%emt 0:02:52]} 11. Nd5 {[%emt 0:02:32]} e5 {[%emt 0:16:33]} 12. Nb3 {[%emt 0:06:55]} Nxd5 13. exd5 {[%emt 0:00:44]} f5 {[%emt 0:21:52]} 14. Qb4 {[%emt 0:11:00]} f4 {[%emt 0:04:34]} 15. Bf2 {[%emt 0:01:33]} Nf6 {[%emt 0:02:35]} 16. c4 {[%emt 0:02:38]} 1/2-1/2

[Event "2nd Serbian League-Vojvodina 2023"]
[Site "Novi Sad"]
[Date "2023.11.04"]
[Round "4.9"]
[White "Grujic, Zoran"]
[Black "Jotic, Vladimir"]
[Result "1/2-1/2"]
[ECO "B38"]
[WhiteElo "2315"]
[BlackElo "2280"]
[Annotator "ChessBase"]
[PlyCount "99"]
[EventDate "2023.10.22"]
[EventType "team-tourn"]
[EventCountry "SRB"]
[SourceTitle "playchess.com"]
[Source "ChessBase"]
[SourceQuality "1"]
[TimeControl "40/5400+30:1800+30"]

1. Nf3 {[%emt 0:00:02]} c5 {[%emt 0:02:36]} 2. c4 {[%emt 0:00:29]} Nc6 {[%emt 0:00:06]} 3. d4 {[%emt 0:00:26]} cxd4 {[%emt 0:00:08]} 4. Nxd4 {[%emt 0:00:07]} g6 {[%emt 0:00:09]} 5. e4 {[%emt 0:00:46]} Bg7 {[%emt 0:00:08]} 6. Be3 {[%emt 0:00:06]} Nf6 {[%emt 0:00:05]} 7. Nc3 {[%emt 0:00:06]} O-O {[%emt 0:00:28]} 8. f3 {[%emt 0:01:00]} d6 {[%emt 0:00:11]} 9. Qd2 {[%emt 0:00:33]} Bd7 {[%emt 0:00:23]} 10. Be2 {[%emt 0:01:28]} Nxd4 {[%emt 0:00:31]} 11. Bxd4 {[%emt 0:00:07]} a5 {[%emt 0:00:09]} 12. b3 {[%emt 0:00:45]} Bc6 {[%emt 1:31:36]} 13. Rc1 {[%emt 0:02:33]} Nd7 {[%emt 0:00:00]} 14. Be3 {[%emt 0:00:22]} Nc5 {[%emt 0:00:00]} 15. O-O {[%emt 0:01:02]} Qb6 {[%emt 0:00:00]} 16. Rc2 {[%emt 1:28:38]} a4 {[%emt 0:02:00]} 17. b4 {[%emt 0:00:00]} Qxb4 {[%emt 0:00:00]} 18. Nd5 {[%emt 0:00:00]} Qxd2 {[%emt 0:01:00]} 19. Nxe7+ {[%emt 0:00:00]} Kh8 {[%emt 0:00:00]} 20. Rxd2 {[%emt 0:00:00]} Rfd8 {[%emt 0:00:00]} 21. Rfd1 {[%emt 0:00:00]} Ne6 {[%emt 0:00:00]} 22. Nxc6 {[%emt 0:00:00]} bxc6 {[%emt 0:00:00]} 23. Rxd6 {[%emt 0:00:00]} Rxd6 {[%emt 0:00:00]} 24. Rxd6 {[%emt 0:00:00]} c5 {[%emt 0:00:00]} 25. Rb6 {[%emt 0:00:00]} a3 {[%emt 0:00:00]} 26. Kf2 {[%emt 0:00:00]} Bd4 {[%emt 0:00:00]} 27. g3 {[%emt 0:00:00]} Ra4 {[%emt 0:00:00]} 28. f4 {[%emt 0:00:00]} Rb4 {[%emt 0:00:00]} 29. Ra6 {[%emt 0:00:00]} Bb2 {[%emt 0:00:00]} 30. f5 {[%emt 0:00:00]} Nd4 {[%emt 0:00:00]} 31. Bh6 {[%emt 0:00:00]} Rb8 {[%emt 0:00:00]} 32. Bd3 {[%emt 0:00:00]} Rc8 {[%emt 0:00:00]} 33. Rb6 {[%emt 0:00:00]} Nc6 {[%emt 0:00:00]} 34. Bd2 {[%emt 0:00:00]} Ne5 {[%emt 0:00:00]} 35. Be2 {[%emt 0:00:00]} Re8 {[%emt 0:01:13]} 36. Rb3 {[%emt 0:00:00]} Ra8 {[%emt 0:03:24]} 37. Bc3 {[%emt 0:00:00]} Bxc3 38. Rxc3 {[%emt 0:00:00]} Nc6 {[%emt 0:00:25]} 39. Bd1 {[%emt 0:00:00]} Kg7 {[%emt 0:00:20]} 40. fxg6 {[%emt 0:02:21]} fxg6 {[%emt 0:01:37]} 41. Ke3 {[%emt 0:30:48]} Kf6 {[%emt 0:30:34]} 42. h4 {[%emt 0:00:29]} Nb4 {[%emt 0:00:28]} 43. Bb3 {[%emt 0:00:16]} Ke5 {[%emt 0:00:24]} 44. Kd2 {[%emt 0:01:44]} Rf8 {[%emt 0:01:20]} 45. Ke3 {[%emt 0:00:48]} Rf1 {[%emt 0:00:47]} 46. Ba4 {[%emt 0:00:29]} Re1+ {[%emt 0:03:28]} 47. Kd2 {[%emt 0:08:35]} Rxe4 {[%emt 0:00:00]} 48. Rxa3 {[%emt 0:00:30]} Rxc4 {[%emt 0:00:00]} 49. Re3+ {[%emt 0:00:30]} Kd6 {[%emt 0:01:30]} 50. Bb3 {[%emt 0:00:30]} 1/2-1/2

[Event "2nd Serbian League-Vojvodina 2023"]
[Site "Novi Sad"]
[Date "2023.11.04"]
[Round "4.10"]
[White "Mikheev, Stanislav"]
[Black "Dragojlovic, Andjelko"]
[Result "0-1"]
[ECO "D79"]
[WhiteElo "2288"]
[BlackElo "2108"]
[Annotator "ChessBase"]
[PlyCount "90"]
[EventDate "2023.10.22"]
[EventType "team-tourn"]
[EventCountry "SRB"]
[SourceTitle "playchess.com"]
[Source "ChessBase"]
[SourceQuality "1"]
[TimeControl "40/5400+30:1800+30"]

1. d4 {[%emt 1:31:00]} Nf6 {[%emt 1:31:00]} 2. c4 {[%emt 0:00:30]} g6 {[%emt 0:00:30]} 3. g3 {[%emt 0:00:30]} c6 {[%emt 0:00:30]} 4. Bg2 {[%emt 0:00:30]} d5 {[%emt 0:00:30]} 5. cxd5 {[%emt 0:00:30]} cxd5 {[%emt 0:00:30]} 6. Nf3 {[%emt 0:00:30]} Bg7 {[%emt 0:00:30]} 7. Nc3 {[%emt 0:00:30]} O-O {[%emt 0:00:30]} 8. Ne5 {[%emt 0:00:30]} Nc6 {[%emt 0:00:30]} 9. O-O {[%emt 0:00:30]} e6 {[%emt 0:00:30]} 10. f4 {[%emt 0:00:30]} Bd7 {[%emt 0:00:30]} 11. Kh1 {[%emt 0:00:30]} Qe7 {[%emt 0:00:30]} 12. e3 {[%emt 0:00:30]} Rfd8 13. b3 Rac8 14. Bb2 Be8 15. Nd3 Bf8 16. a4 {[%emt 0:02:00]} b6 {[%emt 0:02:30]} 17. Ba3 {[%emt 0:00:30]} Qb7 {[%emt 0:00:30]} 18. Bxf8 {[%emt 0:00:30]} Kxf8 {[%emt 0:00:30]} 19. Rc1 {[%emt 0:00:30]} Ne7 {[%emt 0:00:30]} 20. g4 {[%emt 0:00:30]} Rc7 {[%emt 0:00:30]} 21. Rf2 {[%emt 0:00:30]} Rxc3 {[%emt 0:00:30]} 22. Rxc3 {[%emt 0:00:30]} Ne4 {[%emt 0:00:30]} 23. Bxe4 {[%emt 0:00:30]} dxe4 {[%emt 0:00:30]} 24. Nb4 {[%emt 0:00:30]} a5 {[%emt 0:00:30]} 25. Nc2 {[%emt 0:00:30]} Nd5 {[%emt 0:00:30]} 26. Rc4 {[%emt 0:00:30]} b5 {[%emt 0:00:30]} 27. axb5 {[%emt 0:00:30]} Bxb5 {[%emt 0:00:30]} 28. f5 {[%emt 0:00:30]} exf5 {[%emt 0:00:30]} 29. gxf5 {[%emt 0:00:30]} Bxc4 {[%emt 0:00:30]} 30. bxc4 {[%emt 0:00:30]} Ne7 {[%emt 0:00:30]} 31. fxg6 {[%emt 0:00:30]} hxg6 {[%emt 0:00:30]} 32. Qa1 {[%emt 0:00:30]} Qc7 {[%emt 0:00:30]} 33. Qa4 {[%emt 0:00:30]} Rb8 {[%emt 0:00:30]} 34. Na3 {[%emt 0:00:30]} Rb4 {[%emt 0:00:30]} 35. Qc2 {[%emt 0:00:30]} Nf5 {[%emt 0:00:30]} 36. c5 {[%emt 0:00:30]} Nxe3 {[%emt 0:00:30]} 37. Qxe4 {[%emt 0:00:30]} Nf5 {[%emt 0:00:30]} 38. Rd2 {[%emt 0:00:30]} a4 {[%emt 0:00:30]} 39. c6 {[%emt 0:00:30]} Qd6 {[%emt 0:00:30]} 40. Rc2 {[%emt 0:00:30]} Rxd4 {[%emt 0:00:30]} 41. Qe2 {[%emt 0:30:30]} Rd1+ {[%emt 0:30:30]} 42. Kg2 {[%emt 0:00:30]} Qd5+ {[%emt 0:00:30]} 43. Kf2 {[%emt 0:00:30]} Qd4+ {[%emt 0:00:30]} 44. Kf3 {[%emt 0:00:30]} Rd3+ {[%emt 0:00:30]} 45. Kg2 {[%emt 0:00:30]} Ne3+ {[%emt 0:00:30]} 0-1

[Event "2nd Serbian League-Vojvodina 2023"]
[Site "Novi Sad"]
[Date "2023.11.04"]
[Round "4.11"]
[White "Ilincic, Aleksa"]
[Black "Bulajic, Ratko"]
[Result "1-0"]
[ECO "B22"]
[WhiteElo "2235"]
[BlackElo "2075"]
[Annotator "ChessBase"]
[PlyCount "101"]
[EventDate "2023.10.22"]
[EventType "team-tourn"]
[EventCountry "SRB"]
[SourceTitle "playchess.com"]
[Source "ChessBase"]
[SourceQuality "1"]
[TimeControl "40/5400+30:1800+30"]

1. e4 {[%emt 1:31:00]} c5 {[%emt 1:31:00]} 2. c3 {[%emt 0:00:30]} d6 {[%emt 0:00:30]} 3. d4 {[%emt 0:00:30]} Nf6 {[%emt 0:00:30]} 4. dxc5 {[%emt 0:00:30]} Nc6 {[%emt 0:00:30]} 5. Qd3 {[%emt 0:00:30]} dxc5 {[%emt 0:00:30]} 6. Qxd8+ {[%emt 0:00:30]} Nxd8 {[%emt 0:00:30]} 7. f3 {[%emt 0:00:30]} Nc6 {[%emt 0:00:30]} 8. Be3 {[%emt 0:00:30]} b6 {[%emt 0:00:30]} 9. a4 {[%emt 0:00:30]} Bb7 {[%emt 0:00:30]} 10. Na3 {[%emt 0:00:30]} Nd7 {[%emt 0:00:30]} 11. Nc4 {[%emt 0:00:30]} Nde5 12. Nxe5 Nxe5 13. a5 O-O-O {[%emt 0:01:30]} 14. Rd1 {[%emt 0:01:30]} Rxd1+ {[%emt 0:00:30]} 15. Kxd1 {[%emt 0:00:30]} e6 {[%emt 0:00:30]} 16. Kc2 {[%emt 0:00:30]} Be7 {[%emt 0:00:30]} 17. Nh3 {[%emt 0:00:30]} h6 {[%emt 0:00:30]} 18. Nf2 {[%emt 0:00:30]} g5 {[%emt 0:00:30]} 19. axb6 {[%emt 0:00:30]} axb6 {[%emt 0:00:30]} 20. Bb5 {[%emt 0:00:30]} Bd6 {[%emt 0:00:30]} 21. h4 {[%emt 0:00:30]} Rg8 {[%emt 0:00:30]} 22. hxg5 {[%emt 0:00:30]} hxg5 {[%emt 0:00:30]} 23. Rh7 {[%emt 0:00:30]} Bc7 {[%emt 0:00:30]} 24. Nd3 {[%emt 0:00:30]} Nxd3 {[%emt 0:00:30]} 25. Kxd3 {[%emt 0:00:30]} Rd8+ {[%emt 0:00:30]} 26. Ke2 {[%emt 0:00:30]} f6 {[%emt 0:00:30]} 27. Rf7 {[%emt 0:00:30]} Be5 {[%emt 0:00:30]} 28. Bc4 {[%emt 0:00:30]} Re8 {[%emt 0:00:30]} 29. Bb5 {[%emt 0:00:30]} Rd8 {[%emt 0:00:30]} 30. Re7 {[%emt 0:00:30]} Rd6 {[%emt 0:00:30]} 31. Bc4 {[%emt 0:00:30]} Bc6 {[%emt 0:00:30]} 32. Rxe6 {[%emt 0:00:30]} Kd7 {[%emt 0:00:30]} 33. Rxd6+ {[%emt 0:00:30]} Kxd6 {[%emt 0:00:30]} 34. Kf2 {[%emt 0:00:30]} Bf4 {[%emt 0:00:30]} 35. g3 {[%emt 0:00:30]} Bxe3+ 36. Kxe3 Ke5 {[%emt 0:01:00]} 37. f4+ {[%emt 0:01:00]} gxf4+ {[%emt 0:00:30]} 38. gxf4+ {[%emt 0:00:30]} Kd6 {[%emt 0:00:30]} 39. Bd3 {[%emt 0:00:30]} Be8 {[%emt 0:00:30]} 40. Kf3 {[%emt 0:00:30]} Bh5+ {[%emt 0:00:30]} 41. Kg3 {[%emt 0:30:30]} Bd1 {[%emt 0:30:30]} 42. Kf2 {[%emt 0:00:30]} Bh5 {[%emt 0:00:30]} 43. Be2 {[%emt 0:00:30]} Bg6 {[%emt 0:00:30]} 44. Bf3 {[%emt 0:00:30]} Be8 {[%emt 0:00:30]} 45. Kg3 {[%emt 0:00:30]} Ke6 {[%emt 0:00:30]} 46. Kh4 {[%emt 0:00:30]} Bc6 {[%emt 0:00:30]} 47. Kh5 {[%emt 0:00:30]} Kf7 {[%emt 0:00:30]} 48. Kh6 {[%emt 0:00:30]} f5 {[%emt 0:00:30]} 49. Bh5+ {[%emt 0:00:30]} Ke6 {[%emt 0:00:30]} 50. e5 {[%emt 0:00:30]} Be4 {[%emt 0:00:30]} 51. Kh7 {[%emt 0:00:30]} 1-0

[Event "2nd Serbian League-Vojvodina 2023"]
[Site "Novi Sad"]
[Date "2023.11.04"]
[Round "4.13"]
[White "Horvath, Zsolt"]
[Black "Georgiev, Krum"]
[Result "0-1"]
[ECO "A45"]
[WhiteElo "2377"]
[BlackElo "2294"]
[Annotator "ChessBase"]
[PlyCount "116"]
[EventDate "2023.10.22"]
[EventType "team-tourn"]
[EventCountry "SRB"]
[SourceTitle "playchess.com"]
[Source "ChessBase"]
[SourceQuality "1"]
[TimeControl "40/5400+30:1800+30"]

1. d4 {[%emt 0:00:44]} Nf6 {[%emt 0:00:11]} 2. Bf4 {[%emt 0:00:34]} c5 {[%emt 0:01:09]} 3. d5 {[%emt 0:00:29]} Qb6 {[%emt 0:01:22]} 4. Nc3 {[%emt 0:01:01]} a6 {[%emt 0:15:43]} 5. a4 {[%emt 0:10:01]} d6 {[%emt 0:15:21]} 6. a5 {[%emt 0:07:00]} Qd8 {[%emt 0:01:36]} 7. e4 {[%emt 0:00:55]} e5 {[%emt 0:00:11]} 8. Bd2 {[%emt 0:01:44]} Nbd7 {[%emt 0:06:33]} 9. Nf3 {[%emt 0:06:56]} g6 {[%emt 0:00:41]} 10. Be2 {[%emt 0:02:36]} Bg7 {[%emt 0:00:30]} 11. O-O {[%emt 0:00:53]} O-O {[%emt 0:00:10]} 12. Qc1 {[%emt 0:08:31]} Kh8 {[%emt 0:53:03]} 13. Ra3 {[%emt 0:06:20]} Rb8 {[%emt 0:00:00]} 14. Re1 {[%emt 0:02:47]} Qe7 {[%emt 0:00:00]} 15. Bg5 {[%emt 0:01:56]} Qd8 {[%emt 0:00:00]} 16. Nd2 {[%emt 0:01:23]} Qc7 {[%emt 0:00:00]} 17. Nc4 {[%emt 0:03:59]} Ng8 {[%emt 0:02:30]} 18. Be3 {[%emt 0:09:38]} f5 {[%emt 0:00:00]} 19. f3 {[%emt 0:04:00]} f4 {[%emt 0:00:00]} 20. Bf2 {[%emt 0:00:03]} h5 {[%emt 0:00:00]} 21. Na4 {[%emt 0:01:09]} g5 {[%emt 0:00:00]} 22. c3 {[%emt 0:02:00]} g4 {[%emt 0:00:00]} 23. b4 {[%emt 0:00:28]} g3 {[%emt 0:00:00]} 24. hxg3 {[%emt 0:00:46]} fxg3 {[%emt 0:00:00]} 25. Bxg3 {[%emt 0:02:38]} Bh6 {[%emt 0:00:00]} 26. Qd1 {[%emt 0:02:49]} Ngf6 {[%emt 0:00:00]} 27. Bf1 {[%emt 0:02:28]} Rg8 {[%emt 0:00:00]} 28. Bh2 {[%emt 0:02:02]} h4 {[%emt 0:00:00]} 29. Ra2 {[%emt 0:01:10]} cxb4 {[%emt 0:00:00]} 30. cxb4 {[%emt 0:00:27]} Nf8 {[%emt 0:01:03]} 31. Rc2 {[%emt 0:01:45]} Qe7 {[%emt 0:00:02]} 32. Nab6 {[%emt 0:00:51]} Ng6 {[%emt 0:01:04]} 33. Ne3 {[%emt 0:04:15]} Bxe3+ {[%emt 0:02:13]} 34. Rxe3 {[%emt 0:00:15]} Nf4 {[%emt 0:01:52]} 35. Bxf4 {[%emt 0:02:29]} exf4 {[%emt 0:00:04]} 36. Rec3 {[%emt 0:00:05]} Bh3 {[%emt 0:01:28]} 37. Qd4 {[%emt 0:00:56]} Qg7 {[%emt 0:00:34]} 38. Rc7 {[%emt 0:02:23]} Qg5 {[%emt 0:00:33]} 39. Rf7 {[%emt 0:01:31]} Rg6 {[%emt 0:00:03]} 40. Nd7 {[%emt 0:05:43]} Bxd7 {[%emt 0:00:13]} 41. Rxd7 {[%emt 0:30:02]} h3 {[%emt 0:31:28]} 42. Rxd6 {[%emt 0:00:14]} Re8 {[%emt 0:00:57]} 43. Re6 {[%emt 0:01:42]} Rd8 {[%emt 0:00:16]} 44. Qe5 {[%emt 0:01:57]} Qh4 {[%emt 0:00:13]} 45. Rxf6 {[%emt 0:00:41]} Rxf6 {[%emt 0:00:42]} 46. Rf2 {[%emt 0:00:31]} Rg8 {[%emt 0:00:44]} 47. d6 {[%emt 0:00:31]} Kh7 {[%emt 0:00:20]} 48. Re2 {[%emt 0:00:33]} Rh6 {[%emt 0:00:40]} 49. Qe7+ {[%emt 0:00:30]} Qxe7 {[%emt 0:00:07]} 50. dxe7 {[%emt 0:00:02]} Re6 {[%emt 0:00:12]} 51. e5 {[%emt 0:00:57]} hxg2 {[%emt 0:02:12]} 52. Bxg2 {[%emt 0:01:10]} Rg5 {[%emt 0:00:00]} 53. Re4 {[%emt 0:00:00]} Rxe7 {[%emt 0:00:00]} 54. Kf2 {[%emt 0:00:13]} Rgxe5 {[%emt 0:00:00]} 55. Rxf4 {[%emt 0:00:08]} Re2+ {[%emt 0:00:05]} 56. Kg3 {[%emt 0:01:03]} Rg7+ {[%emt 0:00:11]} 57. Rg4 {[%emt 0:00:04]} Rb2 {[%emt 0:00:11]} 58. Rxg7+ {[%emt 0:01:00]} Kxg7 {[%emt 0:00:03]} 0-1

[Event "2nd Serbian League-Vojvodina 2023"]
[Site "Novi Sad"]
[Date "2023.11.04"]
[Round "4.14"]
[White "Indjic, Dusan"]
[Black "Farkas, Sandor I"]
[Result "1-0"]
[ECO "E74"]
[WhiteElo "2304"]
[BlackElo "2112"]
[Annotator "ChessBase"]
[PlyCount "141"]
[EventDate "2023.10.22"]
[EventType "team-tourn"]
[EventCountry "SRB"]
[SourceTitle "playchess.com"]
[Source "ChessBase"]
[SourceQuality "1"]
[TimeControl "40/5400+30:1800+30"]

1. d4 {[%emt 0:00:19]} Nf6 {[%emt 0:00:09]} 2. c4 {[%emt 0:01:31]} g6 {[%emt 0:00:08]} 3. Nc3 {[%emt 0:00:19]} Bg7 {[%emt 0:00:09]} 4. e4 {[%emt 0:00:19]} d6 {[%emt 0:00:08]} 5. Be2 {[%emt 0:00:24]} O-O {[%emt 0:00:14]} 6. Bg5 {[%emt 0:00:20]} c5 {[%emt 0:00:19]} 7. d5 {[%emt 0:00:25]} h6 {[%emt 0:00:30]} 8. Bf4 {[%emt 0:01:31]} a6 {[%emt 0:02:28]} 9. Qc1 {[%emt 0:10:20]} Kh7 {[%emt 0:00:25]} 10. Nf3 {[%emt 0:00:32]} b5 {[%emt 0:06:27]} 11. cxb5 {[%emt 0:00:57]} axb5 {[%emt 0:00:13]} 12. Bxb5 {[%emt 0:00:18]} Nxe4 {[%emt 0:06:37]} 13. Nxe4 {[%emt 0:01:12]} Qa5+ {[%emt 0:00:17]} 14. Nc3 {[%emt 0:03:37]} Bxc3+ {[%emt 0:02:32]} 15. bxc3 {[%emt 0:00:16]} Qxb5 {[%emt 0:00:14]} 16. c4 {[%emt 0:00:54]} Qb4+ {[%emt 0:02:25]} 17. Bd2 {[%emt 0:02:09]} Qa3 {[%emt 0:00:23]} 18. Bxh6 {[%emt 0:08:36]} Qxc1+ {[%emt 0:00:10]} 19. Bxc1 {[%emt 0:00:07]} Ra4 {[%emt 0:00:11]} 20. Nd2 {[%emt 0:01:22]} Ba6 {[%emt 0:00:53]} 21. O-O {[%emt 0:00:52]} Nd7 {[%emt 0:12:34]} 22. Re1 {[%emt 0:26:50]} Ne5 {[%emt 0:10:41]} 23. f4 {[%emt 0:06:21]} Nxc4 {[%emt 0:03:26]} 24. Rxe7 {[%emt 0:00:52]} Nb6 {[%emt 0:20:30]} 25. Re4 {[%emt 0:04:55]} Bd3 {[%emt 0:14:36]} 26. Rxa4 {[%emt 0:17:06]} Nxa4 {[%emt 0:00:14]} 27. Nf1 {[%emt 0:00:20]} Ra8 {[%emt 0:04:25]} 28. Ne3 {[%emt 0:01:16]} Nc3 {[%emt 0:02:33]} 29. Bb2 {[%emt 0:00:45]} Ne2+ {[%emt 0:00:41]} 30. Kf2 {[%emt 0:01:51]} c4 {[%emt 0:04:41]} 31. Nd1 {[%emt 0:01:58]} Nxf4 {[%emt 0:03:48]} 32. Nc3 {[%emt 0:01:18]} Bf5 {[%emt 0:01:26]} 33. Bc1 {[%emt 0:00:54]} Nd3+ {[%emt 0:00:33]} 34. Ke3 {[%emt 0:00:42]} Nc5 {[%emt 0:00:14]} 35. Bb2 {[%emt 0:01:00]} Nd3 {[%emt 0:01:00]} 36. Bc1 {[%emt 0:00:23]} Ne1 {[%emt 0:00:23]} 37. Kf2 {[%emt 0:01:28]} Re8 {[%emt 0:01:39]} 38. a4 {[%emt 0:01:51]} Nd3+ {[%emt 0:00:36]} 39. Kf3 {[%emt 0:01:34]} Ra8 {[%emt 0:00:24]} 40. Ba3 {[%emt 0:00:33]} Ra6 {[%emt 0:00:39]} 41. Ke3 {[%emt 0:30:17]} Bd7 {[%emt 0:30:16]} 42. Kd4 {[%emt 0:00:45]} Ne5 {[%emt 0:00:30]} 43. Bxd6 {[%emt 0:01:04]} Nd3 {[%emt 0:00:37]} 44. Be7 {[%emt 0:00:30]} Nb2 {[%emt 0:00:26]} 45. a5 {[%emt 0:00:25]} Kg7 {[%emt 0:00:38]} 46. Bc5 {[%emt 0:00:58]} f6 {[%emt 0:00:34]} 47. Re1 {[%emt 0:01:44]} Bf5 {[%emt 0:00:23]} 48. Re7+ {[%emt 0:00:00]} Kh6 {[%emt 0:00:10]} 49. Ra7 {[%emt 0:00:00]} Rxa7 {[%emt 0:00:59]} 50. Bxa7 {[%emt 0:00:00]} Bd7 {[%emt 0:00:07]} 51. Bc5 {[%emt 0:00:25]} Nd3 {[%emt 0:00:20]} 52. a6 {[%emt 0:00:36]} Bc8 {[%emt 0:00:09]} 53. a7 {[%emt 0:00:05]} Bb7 {[%emt 0:00:01]} 54. Kxc4 {[%emt 0:00:22]} Ne5+ {[%emt 0:00:07]} 55. Kb5 {[%emt 0:00:31]} Nd7 {[%emt 0:00:09]} 56. Be3+ {[%emt 0:01:00]} g5 {[%emt 0:00:25]} 57. Kc4 {[%emt 0:00:48]} f5 {[%emt 0:00:14]} 58. Na4 {[%emt 0:00:10]} f4 {[%emt 0:00:24]} 59. Bd4 {[%emt 0:00:14]} Kg6 {[%emt 0:00:22]} 60. Nb6 {[%emt 0:00:25]} Nxb6+ {[%emt 0:00:45]} 61. Bxb6 {[%emt 0:00:05]} Kf7 {[%emt 0:00:30]} 62. Kc5 {[%emt 0:01:10]} Ke7 {[%emt 0:00:06]} 63. Bc7 {[%emt 0:00:30]} Kd7 {[%emt 0:00:17]} 64. Be5 {[%emt 0:00:03]} Ke7 {[%emt 0:00:29]} 65. h4 {[%emt 0:00:29]} f3 {[%emt 0:00:32]} 66. gxf3 {[%emt 0:00:23]} gxh4 {[%emt 0:00:06]} 67. Bh2 {[%emt 0:02:44]} h3 {[%emt 0:01:01]} 68. f4 {[%emt 0:00:00]} Ba8 {[%emt 0:00:29]} 69. f5 {[%emt 0:00:00]} Kf6 {[%emt 0:01:01]} 70. d6 {[%emt 0:00:00]} Kf7 {[%emt 0:00:15]} 71. Kb6 {[%emt 0:00:00]} 1-0